Cogmind - Beta 13 @@@ ROGUE MODE // 2024.08.03 @ 23:50:36 Player: Gofreza Result: Destroyed by NE-2E4(R) with Subdweller Beam Cannon Performance ------------- Evolutions (0) 0 Regions Visited (2) 400 Robots Destroyed (10) 50 Value Destroyed (273) 273 Prototype IDs (0) 0 Alien Tech Used (0) 0 Bonus (0) 0 TOTAL SCORE: 723 Bonus ------- None Cogmind --------- Core Integrity 0/250 Matter 180/300 Energy 76/100 System Corruption 0% Temperature Cool (9) Movement Treading (160) Location -10/Subcaves Parts ------- > --- POWER (1) -------- (None) > --- PROPULSION (2) --- Light Treads > --- UTILITY (2) ------ Small Storage Unit > --- WEAPON (2) ------- Medium Laser > --- INVENTORY (8) ---- Ion Engine Light Treads Aluminum Leg Aluminum Leg Scrap Shield Peak State ------------ > --- POWER ------------ Light Ion Engine > --- PROPULSION ------- Light Treads Light Treads > --- UTILITY ---------- Heat Sink Small Storage Unit > --- WEAPON ----------- Light Assault Rifle Grenade Launcher > --- INVENTORY -------- Ion Engine Light Treads Aluminum Leg Aluminum Leg Scrap Shield Medium Laser Small Laser [Rating: 8] Favorites ----------- Power Light Ion Engine Engine Light Ion Engine Propulsion Light Treads Treads Light Treads Utility Small Storage Unit Device Heat Sink Storage Small Storage Unit Weapon Light Assault Rifle Energy Gun Medium Laser Ballistic Gun Light Assault Rifle Launcher Grenade Launcher Build | -11 -10 -10 ------- Run | Yrd Mat Sub Slots Evolved . | . . . Power . | . . . Propulsion . | . . . Utility . | . . . Weapon . | . . . Parts Attached 9 | 5 2 2 Power 1 | 1 . . Engine 1 | 1 . . Core . | . . . Reactor . | . . . Propulsion 2 | 2 . . Treads 2 | 2 . . Leg . | . . . Wheel . | . . . Hover . | . . . Flight . | . . . Utility 2 | 1 1 . Device 1 | . 1 . Storage 1 | 1 . . Processor . | . . . Hackware . | . . . Protection . | . . . Artifact . | . . . Weapon 4 | 1 1 2 Energy Gun 2 | . . 2 Energy Cannon . | . . . Ballistic Gun 1 | 1 . . Ballistic Cannon . | . . . Launcher 1 | . 1 . Special Weapon . | . . . Impact Weapon . | . . . Slashing Weapon . | . . . Piercing Weapon . | . . . Special Melee Weapon . | . . . Unidentified Prototypes . | . . . Parts Lost 6 | . . 6 Power 1 | . . 1 Propulsion 1 | . . 1 Utility 1 | . . 1 Weapon 3 | . . 3 Highest Loss Streak 6 | . . 6 To Critical Strikes . | . . . Average Slot Usage (%) 96 | . 95 97 Engine 13 | . 14 12 Treads 28 | . 28 28 Device 12 | . 11 14 Storage 14 | . 14 14 Energy Gun 1 | . . 2 Ballistic Gun 13 | . 14 13 Launcher 11 | . 12 11 Naked Turns . | . . . Heaviest Build 13 | 9 13 13 Greatest Support 40 | 40 40 40 Greatest Overweight (x) . | . . . Average Overweight (x) . | . . . Largest Inventory Capacity 8 | 8 8 8 Average Capacity 7 | 7 8 8 Most Carried 8 | 7 8 8 Average Carried 6 | 4 7 7 Final Capacity 8 | 8 8 8 Final Carried 8 | 7 8 6 Class Distribution -------------------- 100% | Mutant Dominant Class ---------------- Mutant | -10/Materials Mutant | -10/Subcaves Resources | -11 -10 -10 ----------- Run | Yrd Mat Sub Matter Collected 289 | 211 32 46 Remotely . | . . . Salvage Created 175 | . 110 65 Parts 18 | . 15 3 Haulers Intercepted . | . . . Recyclers Shooed . | . . . Parts Field Recycled . | . . . Retrieved Matter . | . . . Parts Self-Destructed . | . . . Prevented . | . . . Kills | -11 -10 -10 ------- Run | Yrd Mat Sub Combat Hostiles Destroyed 6 | . 4 2 Guns 2 | . . 2 AOE 4 | . 4 . Classes Destroyed 5 | . 4 1 Builder 1 | . 1 . Tunneler 1 | . 1 . Watcher 2 | . 2 . Grunt 4 | . 4 . Subdweller 2 | . . 2 Best Kill Streak 4 | . 4 2 Combat Bots Only 3 | . 3 2 Max Kills in Single Turn 2 | . 2 1 Gunslinging . | . . . Exploded 1 | . 1 . Melee . | . . . Uniques/NPCs Destroyed . | . . . Combat | -11 -10 -10 -------- Run | Yrd Mat Sub Hostile Shots Fired 63 | . 12 51 Missed 17 | . 3 14 Damage Taken 945 | . 133 812 Core 272 | . 6 266 Absorbed by Shields . | . . . Core Remaining (%) 100 | 100 . . Volleys Fired 34 | . 17 17 Largest 2 | . 1 2 Hottest 70 | . 30 70 Shots Fired 42 | . 17 25 Gun 28 | . 3 25 Cannon . | . . . Launcher 14 | . 14 . Special . | . . . Kinetic 14 | . 3 11 Thermal 14 | . . 14 Explosive 14 | . 14 . Electromagnetic . | . . . Robot Hit Streak 17 | . 5 17 Robot Miss Streak 2 | . 2 2 Penetration Max . | . . . Secondary Targets . | . . . Shots Hit Robots 31 | . 9 22 Core Hits 18 | . 15 3 Critical Kills . | . . . Critical Parts Destroyed . | . . . Critical Strikes . | . . . Melee Attacks . | . . . Impact . | . . . Slashing . | . . . Piercing . | . . . Sneak Attacks . | . . . Combat Hostiles . | . . . Follow-up Attacks . | . . . Damage Inflicted 801 | . 592 209 Guns 209 | . . 209 Cannons . | . . . Explosions 587 | . 587 . Melee . | . . . Ramming 5 | . 5 . Kinetic 79 | . . 79 Thermal 130 | . . 130 Explosive 587 | . 587 . Electromagnetic . | . . . Impact . | . . . Slashing . | . . . Piercing . | . . . Highest Corruption . | . . . Average Corruption . | . . . Corruption Purged . | . . . Corruption Blocked . | . . . Overload Shots . | . . . Overflow Damage 6 | . 6 . Projectiles . | . . . Explosions 6 | . 6 . Melee . | . . . Knockbacks . | . . . Impact . | . . . Kinetic . | . . . Secondary . | . . . Self-Inflicted Damage 18 | . 18 . Shots 2 | . 2 . Rammed 1 | . 1 . Targets Rammed 1 | . 1 . Kicked . | . . . Crushed . | . . . Highest Temperature . | . . . Average Temperature . | . . . Received Heat Transfer 120 | . 66 54 Siege Activations . | . . . Robots Corrupted . | . . . Combat Hostiles . | . . . Parts Fried . | . . . Impact Corruptions . | . . . Robots Melted . | . . . Combat Hostiles . | . . . Parts Melted . | . . . Heat Transferred 359 | . . 359 Parts Sabotaged . | . . . Parts Stolen . | . . . Parts Stripped . | . . . Power Chain Reactions . | . . . Alert | -11 -10 -10 ------- Run | Yrd Mat Sub Peak Influence 212 | . 212 . Initial . | . . . Average 38 | . 55 . Maximum Alert Level 1 | . 1 . Low Security (%) 90 | 100 86 . Level 1 9 | . 13 . Level 2 . | . . . Level 3 . | . . . Level 4 . | . . . Level 5 . | . . . High Security . | . . . Max Security . | . . . Squads Dispatched . | . . . Investigation . | . . . Extermination . | . . . Reinforcement . | . . . Assault . | . . . Garrison . | . . . Intercept . | . . . Searches Triggered . | . . . Construction Impeded . | . . . Haulers Reinforced . | . . . Active Scanning Responses . | . . . Cargo Convoy Interrupts . | . . . Stealth | -11 -10 -10 --------- Run | Yrd Mat Sub Distress Signals 1 | . 1 . Communications Jammed . | . . . Distress Signals . | . . . Times Spotted 15 | . 8 7 Peak Tracking Total 6 | . 4 6 Tactical Retreats . | . . . Traps | -11 -10 -10 ------- Run | Yrd Mat Sub Traps Triggered . | . . . Indirectly . | . . . Trap Hack Attempts . | . . . Triggered . | . . . Disarmed . | . . . Reprogrammed . | . . . Reused . | . . . Traps Extracted . | . . . Installed . | . . . Triggered . | . . . Machines | -11 -10 -10 ---------- Run | Yrd Mat Sub Machines Disabled . | . . . Max in Single Turn . | . . . Machines Repaired . | . . . Machines Dismantled . | . . . Machines Sabotaged . | . . . Overloaded Fab Kills . | . . . Hacking | -11 -10 -10 --------- Run | Yrd Mat Sub Machines Accessed . | . . . Terminals . | . . . Fabricators . | . . . Repair Stations . | . . . Recycling Units . | . . . Scanalyzers . | . . . Garrison Access . | . . . Total Hacks . | . . . Successful . | . . . Failed . | . . . Catastrophic . | . . . Database Lockouts . | . . . Manual . | . . . Terminals . | . . . Fabricators . | . . . Repair Stations . | . . . Recycling Units . | . . . Scanalyzers . | . . . Garrison Access . | . . . Terminal Hacks . | . . . Fabricator Hacks . | . . . Repair Station Hacks . | . . . Recycling Unit Hacks . | . . . Scanalyzer . | . . . Garrison Access Hacks . | . . . Unauthorized Hacks . | . . . Terminals . | . . . Fabricators . | . . . Repair Stations . | . . . Recycling Units . | . . . Scanalyzers . | . . . Garrison Access . | . . . Data Cores Recovered . | . . . Used . | . . . Hacking Detections . | . . . Full Trace Events . | . . . Feedback Events . | . . . Feedback Blocked . | . . . Robot Schematics Acquired . | . . . Robots Built . | . . . Authchips . | . . . Time . | . . . Total Robot Build Rating . | . . . Part Schematics Acquired . | . . . Parts Built . | . . . Authchips . | . . . Time . | . . . Total Part Build Rating . | . . . Parts Repaired . | . . . Time . | . . . Parts Recycled . | . . . Recycled Matter . | . . . Retrieved Matter . | . . . Retrieved Components . | . . . Parts Scanalyzed . | . . . Part Schematics Acquired . | . . . Parts Damaged . | . . . Bothacking | -11 -10 -10 ------------ Run | Yrd Mat Sub Used RIF Installer . | . . . Robots Hacked . | . . . Non-combat . | . . . Combat . | . . . Robot Hacks Applied . | . . . Relay Couplers Released . | . . . Fabnet Peak Effective % . | . . . Robots Rewired . | . . . Allies Hacked . | . . . Hacks Repelled . | . . . Allies | -11 -10 -10 -------- Run | Yrd Mat Sub Total Allies . | . . . Largest Group . | . . . Highest-Rated Group . | . . . Highest-Rated Ally . | . . . Total Orders . | . . . Ally Attacks . | . . . Total Damage . | . . . Kills . | . . . Allies Corrupted . | . . . Allies Melted 2 | . . 2 Intel | -11 -10 -10 ------- Run | Yrd Mat Sub Robot Analysis Total . | . . . Derelict Logs Recovered 2 | . . 2 Drone Launches . | . . . Drone Recoveries . | . . . Exploration | -11 -10 -10 ------------- Run | Yrd Mat Sub Turns Passed 686 | 149 325 212 Spaces Moved 387 | 103 179 105 Core 29 | 29 . . Treads 358 | 74 179 105 Legs . | . . . Wheels . | . . . Hover . | . . . Flight . | . . . Fastest Speed 50 | 50 160 160 Average Speed 151 | 129 160 160 Slowest Speed 160 | 160 160 160 Overloaded Moves . | . . . Propulsion Burnouts . | . . . Robots Hopped . | . . . Cave-ins Triggered . | . . . Exploration Rate (%) 14 | 4 31 7 Regions Visited 2 Branch Regions 1 Pre-discovered Areas 1 | . . 1 Known Exits Taken . | . . . Unknown Exits Taken 2 | 1 1 . Scrap Searched 1 | . . 1 Spaces Dug . | . . . Terrain Destroyed 61 | . 61 . Melee . | . . . Projectile . | . . . AOE 61 | . 61 . Terrain Rammed . | . . . Walls Destroyed . | . . . Machines Disabled . | . . . Actions | -11 -10 -10 --------- Run | Yrd Mat Sub Total 447 | 119 201 127 Wait . | . . . Move 385 | 102 178 105 Hop . | . . . Pick Up 16 | 12 3 1 Fast Attach . | . . . Attach 9 | 5 2 2 Detach . | . . . Swap . | . . . Drop 2 | . . 2 Fire 34 | . 17 17 Melee . | . . . Ram . | . . . Kick . | . . . Crush 1 | . 1 . Escape Stasis . | . . . Rewire . | . . . Trap . | . . . Miscellaneous . | . . . Route ------- -11/Scrapyard -10/Materials (discovered 2 exits: [*Mat] / [*Sub]) -10/Subcaves History --------- Turn | Location | Event 4 | -11/Scrapyard | Discovered new exit (range 15) 150 | -11/Scrapyard | Entered Materials 311 | -10/Materials | Build established: Mutant 324 | -10/Materials | Discovered new exit (range 11) 436 | -10/Materials | Discovered new exit (range 7) 475 | -10/Materials | Entered Subcaves 548 | -10/Subcaves | Learned location of Recycling (-8) 604 | -10/Subcaves | Learned location of 1 exit from Materials 643 | -10/Subcaves | Ambushed by swarm of Subdwellers 673 | -10/Subcaves | Core integrity fell below 50% 685 | -10/Subcaves | Core integrity fell below 20% 687 | -10/Subcaves | Destroyed by NE-2E4(R) with Subdweller Beam Cannon Last Messages --------------- 88-F53(h) destroyed. 6Q-PWJ(R) destroyed. ZW-C72(R) destroyed. 9B-ZXY(O) collects matter. S1-YN2(R) destroyed. Sml. Laser destroyed. 9B-ZXY(O) collects matter. Lgt. Ion Engine destroyed. 9B-ZXY(O) puts together Mak. System Shield. 9B-ZXY(O) collects matter. Lgt. Assault Rifle destroyed. VS-W4L(R) destroyed. NE-2E4(R) affixes Scrap Shield Fragment to Scrap Shield. PJ-JHW(R) affixes Scrap Shield Fragment to Scrap Shield. Heat Sink destroyed. ZB-KVW(R) affixes Scrap Shield Fragment to Scrap Shield. Lgt. Treads destroyed. Map ----- +----------------------------------------------------+ | ?????????????????????????????? ?????????? ? | | ????????????????????????????## ##????????? ? | | ????????????????????????????# ##???????? ? | | ???????????????????????????## #????????? ?? | | ???????????????????????????# #####????? ?? | | ???????????????????????????# ?????? ?? | | ??????????????????????????## ????????# #?? | | ??????????????????????????# ??####???## #?? | | ?????????????? % % ## #???# ##?## #?? | | ???????????????# #????# #?# ##? | | ?????????????????????#### ## ##????# #?# = ## | | ????????????????????????##???# ###### ##?#= # | | ?????????????????????????????# ## ### ## | | ????????????????????????????## ## | | ????????????????????????????# ### # | | ???????????????????????????## #### | | ???????????????????????????# ### | | ?????????????????????# ????# # #?## | | ????????????????????## ## # #??## | | ????????????????????# #???# | | ?????????????????? ##??## | | ?????????????????? ### # ###??## | | ????????????????????????## ##### ##??## | | ??????????????????????######????# #### | | ??????????????????????# ######## ! | | ??????????????????????# @# ## [ | | ??????????????????????# *RR ###### # | | ?????????????????????# !!**=% ####????##### ## | | ?????????????????????### !%R!""###???????????## #? | | ???????????????????????# ###;"#??????????????###? | | ???????????????????????####??###?????????????????? | | ?????????????????????????????????????????????????? | | ?????????????????????????????????????????????????? | | ?????????????????????????????????????????????????? | | ?????????????????????????????????????????????????? | | ?????????????????????????????????????????????????? | | ?????????????????????????????????????????????????? | | ?????????????????????????????????????????????????? | | ?????????????????????????????????????????????????? | | ?????????????????????????????????????????????????? | | ?????????????????????????????????????????????????? | | ?????????????????????????????????????????????????? | | ?????????????????????????????????????????????????? | | ?????????????????????????????????????????????????? | | ?????????????????????????????????????????????????? | | ?????????????????????????????????????????????????? | | | | | | | | | +----------------------------------------------------+ Best States ------------- Heat Dissipation 35 Energy Generation 10 Energy Capacity 125 Matter Stores 261 Matter Capacity 300 Sight Range 16 Terrain Scan Density 10 Evasion (%) 50 Recoil Reduction 2 Item Schematics ----------------- None Robot Schematics ------------------ None Fabricated ------------ Nothing Alien Tech Used ----------------- None Achievements -------------- None Challenges ------------ None Game ------ Seed MicroLaserDriver Manual? 0 Play Time 00:10:08 Cumulative 1.4 hours Start 2024.08.03 @ 20:04:09 End 2024.08.03 @ 23:50:36 Sessions 2 Manual Loads 0 Difficulty Rogue Special Mode None Game No. 4 Rogue 4 Adventurer 0 Explorer 0 Win Type - Total 0 Types 0/0/0/0/0/0/0/0/0 Lore% 0 Gallery% 5 Achievement% 5 Wizard Run 0 Options --------- Layout 1 ASCII 1 Keyboard 0 Movement Arrows Keybinds 0 Fullscreen 1 Font 24/Smallcaps Map View 50x35 Zoom Use 0% Tactical HUD 0 Map Filters NONE Filters NONE Steam 0 RUN: c3e058c9-647c-451d-9446-bea4f08fc51e